bitfinex-derivatives/quotes_BTCF0:USTF0_20260113
["timestamp","ask_amount","ask_price","bid_price","bid_amount"]
[1768326761878,0.09164575,93441.0,93421.0,0.01071]
[1768326762074,0.010708,93440.0,93421.0,0.10682181]
[1768326762678,0.010708,93440.0,93421.0,0.09382181]
[1768326763273,0.010708,93438.0,93421.0,0.10453181]
[1768326764777,0.18942529,93441.0,93423.0,0.01071]
[1768326765087,0.17871729,93441.0,93421.0,0.09382181]
[1768326765787,0.010708,93440.0,93422.0,0.10682181]
[1768326765989,0.17871729,93441.0,93424.0,0.01071]
[1768326766286,0.17336701,93441.0,93424.0,0.01071]
[1768326766583,0.09636,93452.0,93427.0,0.10682081]
[1768326766776,0.08485288,93456.0,93427.0,0.09611181]
[1768326766974,0.010707,93450.0,93435.0,0.10681981]
[1768326767175,0.08485288,93462.0,93436.0,0.19251181]
[1768326767384,0.010707,93450.0,93436.0,0.0964]
[1768326768084,0.08617639,93455.0,93436.0,0.0964]
[1768326768382,0.08363163,93450.0,93418.0,0.01071]
[1768326768584,0.08363163,93446.0,93419.0,0.0964]
[1768326768782,0.08363163,93446.0,93416.0,0.09611181]
[1768326768783,0.09164575,93444.0,93423.0,0.01071]
[1768326769287,0.18158892,93458.0,93431.0,0.010709]
[1768326769288,0.17527738,93450.0,93431.0,0.010709]
[1768326769486,0.09164575,93450.0,93431.0,0.010709]
[1768326770084,0.09164575,93450.0,93431.0,0.107109]
[1768326770284,0.09164575,93450.0,93431.0,0.087109]
[1768326770489,0.09164575,93450.0,93431.0,0.097818]
[1768326771285,0.09164575,93450.0,93431.0,0.087109]
[1768326771588,0.18158892,93458.0,93432.0,0.09611181]
[1768326771589,0.010707,93447.0,93432.0,0.09611181]
[1768326771888,0.010707,93450.0,93434.0,0.010709]
[1768326772275,0.09164575,93455.0,93433.0,0.010709]
[1768326772482,0.09164575,93455.0,93432.0,0.09611181]
[1768326772684,0.09164575,93454.0,93432.0,0.09611181]
[1768326772884,0.09164575,93452.0,93431.0,0.087109]
[1768326773288,0.17502346,93451.0,93431.0,0.087109]
[1768326773489,0.09164575,93450.0,93431.0,0.087109]
[1768326773687,0.09164575,93449.0,93431.0,0.087109]
[1768326774083,0.09164575,93449.0,93431.0,0.097818]
[1768326774392,0.08316924,93455.0,93432.0,0.09611181]
[1768326774588,0.09164575,93463.0,93439.0,0.09611181]
[1768326774892,0.09164575,93463.0,93445.0,0.010707]
[1768326775196,0.09164575,93463.0,93444.0,0.0964]
[1768326776493,0.08648589,93463.0,93446.0,0.010707]
[1768326776794,0.09164575,93469.0,93446.0,0.09611181]
[1768326776990,0.09164575,93466.0,93444.0,0.0964]
[1768326777391,0.09164575,93465.0,93444.0,0.0964]
[1768326777788,0.09164575,93464.0,93444.0,0.0964]
[1768326777992,0.09164575,93464.0,93444.0,0.0814]
[1768326780192,0.09164575,93464.0,93444.0,0.092108]
[1768326780591,0.09164575,93458.0,93430.0,0.09611181]
[1768326780794,0.0964,93470.0,93430.0,0.09611181]
[1768326780795,0.09164575,93456.0,93437.0,0.010708]
[1768326781492,0.09164575,93456.0,93431.0,0.0964]
[1768326781794,0.09164575,93456.0,93432.0,0.09611181]
[1768326781993,0.09164575,93462.0,93447.0,0.010707]
[1768326782495,0.09164575,93462.0,93441.0,0.010708]
[1768326783096,0.16704756,93464.0,93431.0,0.0964]
[1768326783097,0.09164575,93459.0,93436.0,0.010708]
[1768326783294,0.09164575,93459.0,93438.0,0.010708]
[1768326783496,0.08611005,93464.0,93445.0,0.010707]
[1768326783696,0.09164575,93466.0,93447.0,0.010707]
[1768326783897,0.09164575,93466.0,93443.0,0.09611181]
[1768326783898,0.09164575,93466.0,93444.0,0.010707]
[1768326784397,0.09164575,93466.0,93446.0,0.010707]
[1768326785299,0.09539108,93460.0,93446.0,0.010707]
[1768326785799,0.09539108,93460.0,93443.0,0.08381881]
[1768326786393,0.09539108,93460.0,93446.0,0.010707]
[1768326788683,0.08705105,93464.0,93443.0,0.08381881]
[1768326788889,0.09164575,93466.0,93443.0,0.08381881]
[1768326790195,0.1877803,93466.0,93443.0,0.08381881]
[1768326790401,0.09402559,93465.0,93443.0,0.08381881]
[1768326791102,0.09402559,93465.0,93449.0,0.010707]
[1768326792606,0.17857445,93465.0,93449.0,0.010707]
[1768326793597,0.17857445,93465.0,93443.0,0.06852581]
[1768326794404,0.09402559,93464.0,93449.0,0.010707]
[1768326794604,0.09402559,93464.0,93447.0,0.010707]
[1768326795198,0.09402559,93459.0,93442.0,0.0964]
[1768326795397,0.09402559,93451.0,93442.0,0.08027974]
[1768326795596,0.09402559,93451.0,93437.0,0.010708]
[1768326795804,0.09402559,93451.0,93438.0,0.0964]
[1768326796500,0.09402559,93451.0,93429.0,0.09736307]
[1768326796707,0.09539108,93440.0,93429.0,0.0964]
[1768326796906,8e-08,93440.0,93429.0,0.0964]
[1768326797101,0.17818622,93465.0,93440.0,0.09031044]
[1768326797404,0.17818622,93465.0,93450.0,0.09539108]
[1768326797602,0.09778285,93475.0,93461.0,0.010706]
[1768326797797,0.08474621,93474.0,93463.0,0.010705]
[1768326797998,0.08474621,93474.0,93456.0,0.28199725]
[1768326798303,0.010705,93469.0,93457.0,0.18559725]
[1768326798506,0.010704,93472.0,93457.0,0.09031044]
[1768326799008,0.010704,93472.0,93458.0,0.010706]
[1768326799209,0.010704,93472.0,93456.0,0.0964]
[1768326799404,0.09778285,93478.0,93456.0,0.0964]
[1768326799604,0.010705,93470.0,93456.0,0.0964]
[1768326800905,0.09363736,93469.0,93440.0,0.09528681]
[1768326801102,0.08724613,93477.0,93446.0,0.010707]
[1768326801103,0.010706,93462.0,93446.0,0.010707]
[1768326801302,0.010706,93462.0,93445.0,0.08999381]
[1768326801706,0.010705,93465.0,93448.0,0.010707]
[1768326802610,0.010705,93469.0,93445.0,0.08999381]
[1768326802801,0.09363736,93466.0,93444.0,0.09031044]
[1768326804611,0.010706,93462.0,93446.0,0.010707]
[1768326805508,0.010706,93460.0,93446.0,0.010707]
[1768326805813,0.010706,93460.0,93444.0,0.09031044]
[1768326806198,0.09363736,93463.0,93441.0,0.0964]
[1768326806420,0.010705,93467.0,93439.0,0.09636]
[1768326806421,0.09363736,93457.0,93439.0,0.09636]
[1768326806708,0.010707,93451.0,93438.0,0.09636]
[1768326806908,0.010707,93451.0,93427.0,0.09528681]
[1768326806909,0.09363736,93451.0,93427.0,0.19630625]
[1768326807214,0.010707,93447.0,93429.0,0.010709]
[1768326807414,0.010707,93447.0,93431.0,0.010709]
[1768326808913,0.0964,93464.0,93443.0,0.18559725]
[1768326809112,0.09363736,93463.0,93440.0,0.107108]
[1768326809318,0.010707,93450.0,93440.0,0.0964]
[1768326809519,0.010707,93453.0,93440.0,0.0964]
[1768326811020,0.010707,93450.0,93440.0,0.0964]
[1768326812014,0.010707,93453.0,93440.0,0.0964]
[1768326812211,0.010706,93462.0,93441.0,0.09528681]
[1768326812418,0.010706,93458.0,93444.0,0.09528681]
[1768326812621,0.09363736,93466.0,93445.0,0.09528681]
[1768326812815,0.010706,93454.0,93444.0,0.09031044]
[1768326813122,0.010706,93454.0,93440.0,0.19168681]
[1768326813317,0.010706,93457.0,93441.0,0.010708]
[1768326814114,0.09363736,93475.0,93445.0,0.09031044]
[1768326814319,0.09363736,93465.0,93441.0,0.09528681]
[1768326814520,0.09363736,93459.0,93440.0,0.0964]
[1768326814718,0.010707,93449.0,93440.0,0.0964]
[1768326815021,0.09363736,93458.0,93440.0,0.0964]
[1768326815022,0.010707,93452.0,93440.0,0.0964]
[1768326815819,0.10814592,93457.0,93435.0,0.09222882]
[1768326816007,0.010707,93446.0,93436.0,0.0964]
[1768326816207,0.18971049,93449.0,93430.0,0.0964]
[1768326816416,0.09743992,93445.0,93423.0,0.0964]
[1768326816714,0.09743992,93445.0,93409.0,0.1203]
[1768326816715,0.18971049,93432.0,93413.0,0.00065657]
[1768326816917,0.154001,93452.0,93406.0,9.59e-05]
[1768326816918,0.09743992,93422.0,93406.0,9.59e-05]
[1768326817320,0.09743992,93429.0,93407.0,0.09222882]
[1768326817621,0.0964,93429.0,93413.0,0.09222882]
[1768326817813,0.0964,93429.0,93412.0,0.10164606]
[1768326818009,0.10814792,93436.0,93416.0,0.010711]
[1768326818317,0.00010289,93435.0,93418.0,0.01071]
[1768326818516,0.010709,93434.0,93416.0,0.09222882]
[1768326818706,0.010709,93434.0,93417.0,0.010711]
[1768326819123,0.00010289,93435.0,93419.0,0.01071]
[1768326819417,0.01081189,93435.0,93416.0,0.19933982]
[1768326820321,0.01081189,93435.0,93418.0,0.01071]
[1768326821017,0.010709,93431.0,93416.0,0.18862882]
[1768326821214,0.00010289,93435.0,93420.0,0.01071]
[1768326821615,0.00010289,93435.0,93417.0,0.010711]
[1768326821821,0.010709,93433.0,93417.0,0.010711]
[1768326822622,0.010709,93431.0,93416.0,0.0964]
[1768326822921,0.09754281,93435.0,93416.0,0.0964]
[1768326822922,0.010709,93430.0,93416.0,0.0964]
[1768326823117,0.010709,93432.0,93416.0,0.0964]
[1768326823506,0.01081189,93435.0,93417.0,0.010711]
[1768326823709,0.010709,93433.0,93417.0,0.010711]
[1768326823912,0.00010289,93435.0,93416.0,0.0964]
[1768326824123,0.10814892,93432.0,93416.0,0.107111]
[1768326824708,0.18971049,93431.0,93416.0,0.0964]
[1768326825017,0.01071,93421.0,93406.0,0.107112]
[1768326825222,0.00011397,93420.0,93406.0,0.107112]
[1768326826129,0.00011397,93420.0,93407.0,0.010712]
[1768326827507,0.00011397,93420.0,93414.0,0.010711]
[1768326829518,0.010709,93430.0,93414.0,0.010711]
[1768326830425,0.010709,93428.0,93411.0,0.10293982]
[1768326830817,0.010709,93428.0,93413.0,0.010711]
[1768326831014,0.00535143,93433.0,93411.0,0.09222882]
[1768326831308,0.01071,93426.0,93410.0,0.010711]
[1768326831513,0.19506192,93433.0,93406.0,0.0964]
[1768326831514,0.09227057,93427.0,93406.0,0.0964]
[1768326831727,0.01071,93419.0,93406.0,0.0964]
[1768326832526,0.0964,93427.0,93409.0,0.09093506]
[1768326832709,0.10711,93427.0,93412.0,0.09093506]
[1768326832910,0.0964,93427.0,93412.0,0.09093506]
[1768326833220,0.010709,93434.0,93418.0,0.09093506]
[1768326833823,0.010709,93432.0,93418.0,0.09093506]
[1768326834216,0.010709,93432.0,93419.0,0.01071]
[1768326834416,0.010708,93438.0,93418.0,0.09093506]
[1768326834617,0.010708,93438.0,93422.0,0.09222882]
[1768326834823,0.010708,93438.0,93423.0,0.09222882]
[1768326835025,0.010708,93438.0,93425.0,0.01071]
[1768326835524,0.0964,93444.0,93422.0,0.09093506]
[1768326835727,0.09743992,93439.0,93419.0,0.01071]
[1768326836120,0.010709,93435.0,93421.0,0.01071]
[1768326836318,0.010708,93438.0,93423.0,0.01071]
[1768326836821,0.010708,93436.0,93423.0,0.01071]
[1768326837322,0.09743992,93440.0,93414.0,0.09222882]
[1768326837520,0.01071,93426.0,93412.0,0.010711]
[1768326837722,0.09743992,93434.0,93414.0,0.010711]
[1768326837915,0.010709,93430.0,93415.0,0.010711]
[1768326838121,0.010709,93430.0,93417.0,0.010711]
[1768326839033,0.010709,93433.0,93417.0,0.010711]
[1768326839226,0.09743992,93434.0,93413.0,0.09222882]
[1768326839521,0.01071,93424.0,93407.0,0.10294082]
[1768326839719,0.010709,93432.0,93407.0,0.10294082]
[1768326839720,0.14304537,93430.0,93408.0,0.09222882]
[1768326840026,0.09743992,93433.0,93411.0,0.010711]
[1768326840226,0.01071,93425.0,93409.0,0.08664606]
[1768326840727,0.01071,93426.0,93412.0,0.010711]
[1768326841626,0.01071,93427.0,93412.0,0.09222882]
[1768326841822,0.0964,93431.0,93412.0,0.09222882]
[1768326842128,0.0964,93441.0,93419.0,0.09222882]
[1768326842313,0.010709,93435.0,93420.0,0.01071]
[1768326842518,0.010709,93433.0,93419.0,0.09222882]
[1768326842917,0.19383992,93441.0,93406.0,0.107112]
[1768326842918,0.010709,93436.0,93421.0,0.09222882]
[1768326843329,0.010709,93434.0,93421.0,0.09222882]
[1768326843524,0.010708,93437.0,93422.0,0.01071]
[1768326843723,0.18319918,93443.0,93422.0,0.01071]
[1768326843724,0.010709,93435.0,93423.0,0.09222882]
[1768326844125,0.0964,93439.0,93423.0,0.09222882]
[1768326844329,0.0964,93439.0,93426.0,0.01071]
[1768326844628,0.0964,93439.0,93424.0,0.09222882]
[1768326844629,0.010709,93434.0,93424.0,0.09222882]
[1768326844924,0.010709,93430.0,93416.0,0.10772483]
[1768326845130,0.010709,93430.0,93417.0,0.09491087]
[1768326845721,0.01071,93422.0,93413.0,0.00535257]
[1768326845921,0.010711,93416.0,93413.0,5.7e-07]
[1768326846328,0.01071,93419.0,93413.0,5.7e-07]
[1768326846518,0.09300615,93427.0,93413.0,5.7e-07]
[1768326846724,0.08660038,93443.0,93421.0,0.09491087]
[1768326846920,0.09300615,93442.0,93416.0,0.09491087]
[1768326847230,0.010709,93433.0,93419.0,0.10562087]
[1768326847430,0.010709,93431.0,93419.0,0.09491087]
[1768326848131,0.010709,93434.0,93419.0,0.06891087]
[1768326849629,0.0964,93437.0,93419.0,0.06891087]
[1768326849818,0.010709,93434.0,93420.0,0.01071]
[1768326850232,0.09300615,93442.0,93420.0,0.09491087]
[1768326850431,0.0964,93441.0,93423.0,0.10562087]
[1768326851230,0.24332498,93448.0,93427.0,0.010709]
[1768326851534,0.0964,93447.0,93431.0,0.09491087]
[1768326852034,0.107107,93447.0,93431.0,0.10561987]
[1768326852237,0.010707,93445.0,93431.0,0.10561987]
[1768326852426,0.010707,93445.0,93431.0,0.2026337]
[1768326852628,0.010707,93447.0,93433.0,0.2026337]
[1768326853235,0.08597551,93450.0,93433.0,0.1919247]
[1768326853436,0.0964,93452.0,93433.0,0.1919247]
[1768326854233,0.0964,93452.0,93433.0,0.2026337]
[1768326854437,0.010707,93448.0,93435.0,0.010709]
[1768326854936,0.0964,93452.0,93437.0,0.10561887]
[1768326855139,0.010707,93449.0,93437.0,0.09491087]
[1768326855439,0.010707,93449.0,93434.0,0.010709]
[1768326855628,0.010707,93447.0,93434.0,0.010709]
[1768326855823,0.010707,93447.0,93433.0,0.010709]
[1768326857334,0.010707,93446.0,93429.0,0.0964]
[1768326857531,0.09139935,93449.0,93430.0,0.010709]
[1768326857840,0.09139935,93443.0,93429.0,0.0964]
[1768326858728,0.010708,93445.0,93432.0,0.010709]
[1768326862638,0.010707,93448.0,93435.0,0.010709]
[1768326863429,0.10210635,93450.0,93437.0,0.010708]
[1768326863628,0.10210635,93450.0,93430.0,0.09668474]
[1768326864436,0.10210635,93450.0,93436.0,0.010708]
[1768326865234,0.010707,93450.0,93436.0,0.010708]
[1768326865942,0.010707,93446.0,93433.0,0.010709]
[1768326866243,0.010707,93449.0,93435.0,0.010709]
[1768326866738,0.010707,93447.0,93435.0,0.010709]
[1768326867542,0.010707,93450.0,93435.0,0.010709]
[1768326868242,0.18835978,93451.0,93432.0,0.010709]
[1768326868446,0.010707,93446.0,93429.0,0.0964]
[1768326869854,0.010707,93446.0,93433.0,0.010709]
[1768326870237,0.010707,93446.0,93429.0,0.0964]
[1768326870437,0.010707,93446.0,93429.0,0.19308474]
[1768326870739,0.0964,93452.0,93436.0,0.10739274]
[1768326870740,0.010707,93450.0,93436.0,0.10739274]
[1768326871147,0.0964,93452.0,93433.0,0.010709]
[1768326871346,0.010707,93447.0,93431.0,0.18788502]
[1768326871850,0.010707,93446.0,93433.0,0.010709]
[1768326872355,0.28475978,93452.0,93431.0,0.19859402]
[1768326872648,0.18835978,93451.0,93431.0,0.09668474]
[1768326872945,0.09139935,93448.0,93429.0,0.0964]
[1768326873142,0.18835978,93444.0,93429.0,0.0964]
[1768326873337,0.010708,93438.0,93429.0,0.0964]
[1768326873740,0.010708,93441.0,93429.0,0.0964]
[1768326874052,0.010708,93438.0,93429.0,0.0964]
[1768326874349,0.010708,93440.0,93427.0,0.010709]
[1768326874549,0.010708,93440.0,93428.0,0.010709]
[1768326874752,0.010708,93442.0,93428.0,0.010709]
[1768326875244,0.18835978,93444.0,93423.0,0.01071]
[1768326875445,0.18835978,93444.0,93423.0,0.10418653]
[1768326875649,0.09139935,93444.0,93434.0,0.010709]
[1768326876246,0.010707,93446.0,93434.0,0.010709]
[1768326876649,0.19068546,93447.0,93435.0,0.010708]
[1768326876850,0.010706,93457.0,93445.0,0.09307134]
[1768326877152,0.0964,93457.0,93439.0,0.09307134]
[1768326877646,0.010708,93443.0,93421.0,0.09347653]
[1768326877851,0.09221181,93445.0,93422.0,0.09307134]
[1768326878042,0.09221181,93445.0,93424.0,0.09307134]
[1768326878246,0.010708,93443.0,93431.0,0.010709]
[1768326878448,0.010707,93447.0,93427.0,0.18654787]
[1768326878654,0.010707,93445.0,93429.0,0.18654787]
[1768326878855,0.010707,93445.0,93431.0,0.010709]
[1768326879056,0.010708,93443.0,93429.0,0.19325687]
[1768326879258,0.09221181,93450.0,93431.0,0.010709]
[1768326880057,0.09221181,93450.0,93429.0,0.19325687]
[1768326880256,0.09221181,93447.0,93429.0,0.010709]
[1768326881050,0.09221181,93447.0,93423.0,0.18654787]
[1768326881355,0.010708,93440.0,93423.0,0.18654787]
[1768326882046,0.09221181,93447.0,93425.0,0.18654787]
[1768326882348,0.09221181,93447.0,93426.0,0.09307134]
[1768326882653,0.010708,93441.0,93426.0,0.09307134]
[1768326883658,0.09221181,93447.0,93429.0,0.010709]
[1768326883960,0.010708,93442.0,93427.0,0.010709]
[1768326884260,0.09847365,93454.0,93431.0,0.010709]
[1768326884460,0.09221181,93452.0,93431.0,0.010709]
[1768326884649,0.010707,93447.0,93432.0,0.010709]
[1768326885347,0.010707,93447.0,93432.0,0.19725687]
[1768326885543,0.010707,93445.0,93432.0,0.19725687]
[1768326886745,0.010707,93445.0,93432.0,0.19325687]
[1768326887053,0.010709,93435.0,93426.0,0.09307134]
[1768326887258,0.09221181,93445.0,93426.0,0.09307134]
[1768326887455,0.09221181,93445.0,93426.0,0.10378134]
[1768326888164,0.09847365,93447.0,93427.0,0.010709]
[1768326888661,0.010708,93440.0,93427.0,0.010709]
[1768326889751,0.010708,93442.0,93428.0,0.010709]
[1768326890365,0.010707,93447.0,93428.0,0.18654787]
[1768326890753,0.010707,93445.0,93431.0,0.010709]
[1768326891573,0.18861181,93449.0,93429.0,0.010709]
[1768326891958,0.010708,93444.0,93429.0,0.010709]
[1768326892666,0.010708,93444.0,93431.0,0.010709]
[1768326892861,0.010707,93448.0,93435.0,0.010708]
[1768326893661,0.010707,93447.0,93433.0,0.010709]
[1768326893861,0.010707,93445.0,93432.0,0.010709]
[1768326894265,0.010707,93446.0,93433.0,0.010709]
[1768326894459,0.010707,93446.0,93432.0,0.18025687]
[1768326895367,0.107107,93449.0,93433.0,0.010709]
[1768326895570,0.0964,93449.0,93433.0,0.010709]
[1768326895971,0.107107,93449.0,93433.0,0.010709]
[1768326896168,0.010706,93455.0,93433.0,0.09307134]
[1768326896471,0.0964,93458.0,93446.0,0.09307134]
[1768326896661,0.0964,93464.0,93449.0,0.18654787]
[1768326896862,0.010705,93463.0,93449.0,0.19725487]
[1768326897770,0.010705,93463.0,93450.0,0.18654787]
[1768326897963,0.0964,93464.0,93451.0,0.19725487]
[1768326898270,0.00534914,93473.0,93465.0,0.010705]
[1768326898470,0.00534914,93473.0,93454.0,0.18654787]
[1768326898662,0.00534914,93473.0,93455.0,0.18654787]
[1768326898972,0.010705,93467.0,93455.0,0.18654787]
[1768326899162,0.010705,93469.0,93455.0,0.18654787]
[1768326899356,0.010705,93465.0,93455.0,0.18654787]
[1768326899562,0.00534914,93473.0,93455.0,0.00380734]
[1768326900770,0.00534914,93473.0,93409.0,0.05989656]
[1768326900771,0.19068546,93461.0,93432.0,0.010709]
[1768326900973,0.19068546,93459.0,93433.0,0.0964]
[1768326901167,0.0964,93463.0,93438.0,0.010708]
[1768326901368,0.09221181,93469.0,93446.0,0.010707]
[1768326901576,0.09221181,93469.0,93435.0,0.09307134]
[1768326901577,0.0964,93468.0,93435.0,0.09307134]
[1768326901769,0.010706,93459.0,93439.0,0.09307134]
[1768326902076,0.09847365,93464.0,93439.0,0.010708]
[1768326902266,0.010706,93457.0,93441.0,0.010708]
[1768326902982,0.010706,93459.0,93442.0,0.19725587]
[1768326903168,0.010706,93459.0,93444.0,0.10418353]
[1768326903479,0.19068546,93466.0,93444.0,0.09347653]
[1768326903978,0.0964,93468.0,93443.0,0.09307134]
[1768326903979,0.010706,93456.0,93443.0,0.09307134]
[1768326904374,0.19068546,93465.0,93446.0,0.010707]
[1768326905178,0.010706,93461.0,93443.0,0.10377934]
[1768326905477,0.010706,93459.0,93443.0,0.10377934]
[1768326905679,0.010706,93457.0,93443.0,0.10377934]
[1768326906077,0.09539397,93460.0,93446.0,0.010707]
[1768326906376,0.010706,93459.0,93443.0,0.10377934]
[1768326906879,0.010706,93457.0,93443.0,0.010708]
[1768326907177,0.19184501,93446.0,93424.0,0.09367075]
[1768326907373,0.010709,93428.0,93425.0,0.065905]
[1768326907574,0.09539397,93440.0,93421.0,0.0964]
[1768326909280,0.19184501,93444.0,93421.0,0.19286083]
[1768326909476,0.09539397,93440.0,93425.0,0.01071]
[1768326909977,0.09539397,93440.0,93422.0,0.09646083]
[1768326910281,0.09539397,93440.0,93428.0,0.09646083]
[1768326910479,0.010708,93444.0,93428.0,0.19013158]
[1768326910968,0.0964,93447.0,93431.0,0.10716983]
[1768326911168,0.010707,93446.0,93431.0,0.10716983]
[1768326911675,0.0964,93447.0,93431.0,0.10716983]
[1768326912077,0.09539397,93450.0,93435.0,0.010709]
[1768326912290,0.0964,93449.0,93435.0,0.10716983]
[1768326912477,0.107107,93449.0,93435.0,0.09646083]
[1768326912675,0.0964,93449.0,93436.0,0.010708]
[1768326913383,0.010707,93452.0,93436.0,0.010708]
[1768326913578,0.0964,93457.0,93439.0,0.010708]
[1768326913780,0.010706,93457.0,93441.0,0.09646083]
[1768326913974,0.09539397,93460.0,93441.0,0.09646083]
[1768326914284,0.09539397,93451.0,93436.0,0.010708]
[1768326915087,0.09539397,93451.0,93435.0,0.28653158]
[1768326915286,0.09539397,93445.0,93435.0,0.0964]
[1768326915488,0.010707,93448.0,93434.0,0.0964]
[1768326916380,0.09539397,93444.0,93425.0,0.0964]
[1768326916588,0.09539397,93435.0,93425.0,0.0964]
[1768326916780,0.010709,93435.0,93425.0,0.0964]
[1768326917791,0.010709,93435.0,93418.0,0.0964]
[1768326917792,0.09539397,93435.0,93418.0,0.0964]
[1768326918084,0.09539397,93435.0,93404.0,0.0964]
[1768326918085,0.19121827,93425.0,93404.0,0.0964]
[1768326918284,0.09539397,93420.0,93404.0,0.0964]
[1768326918584,0.09260165,93404.0,93375.0,0.09922004]
[1768326918793,0.010713,93395.0,93376.0,0.09922004]
[1768326918976,0.09539397,93390.0,93374.0,0.0964]
[1768326919176,0.08181748,93390.0,93374.0,0.19562004]
[1768326919484,0.09861662,93401.0,93384.0,0.010714]
[1768326919683,0.19501662,93404.0,93380.0,0.09922004]
[1768326919985,0.23589714,93410.0,93374.0,0.0964]
[1768326919986,0.010712,93406.0,93388.0,0.010714]
[1768326920286,0.0964,93403.0,93379.0,0.09922004]
[1768326920478,0.010712,93402.0,93384.0,0.010714]
[1768326920879,0.0964,93403.0,93384.0,0.010714]
[1768326922885,0.010712,93402.0,93384.0,0.010714]
[1768326923090,0.010713,93399.0,93380.0,0.010715]
[1768326923289,0.09861662,93402.0,93383.0,0.010715]
[1768326923795,0.010713,93401.0,93383.0,0.010715]
[1768326924095,0.09861662,93402.0,93385.0,0.010714]
[1768326924593,0.10932862,93402.0,93385.0,0.010714]
[1768326925096,0.09861662,93400.0,93374.0,0.0964]
[1768326925393,0.19121827,93396.0,93374.0,0.1664]
[1768326925695,0.09861662,93396.0,93374.0,0.1664]
[1768326926194,0.010713,93398.0,93375.0,0.19034867]
[1768326926497,0.010713,93398.0,93380.0,0.010715]
[1768326928299,0.20193127,93396.0,93377.0,0.010715]
[1768326928486,0.09861662,93394.0,93377.0,0.010715]
[1768326928790,0.09861662,93394.0,93379.0,0.010715]
[1768326928995,0.09861662,93394.0,93374.0,0.0964]
[1768326929197,0.24661014,93400.0,93375.0,0.09922004]
[1768326929395,0.10331465,93400.0,93380.0,0.010715]
[1768326929596,0.010713,93398.0,93380.0,0.010715]
[1768326930192,0.010713,93398.0,93373.0,0.00535487]
[1768326930193,0.010715,93377.0,93373.0,8.7e-07]
[1768326930388,0.010715,93380.0,93373.0,8.7e-07]
[1768326930784,0.09861662,93385.0,93373.0,8.7e-07]
[1768326930990,0.010715,93383.0,93373.0,8.7e-07]
[1768326931390,0.05927657,93404.0,93373.0,8.7e-07]
[1768326931391,0.010714,93389.0,93373.0,8.7e-07]
[1768326931694,0.09644,93389.0,93375.0,0.19034867]
[1768326931895,0.010713,93393.0,93375.0,0.19034867]
[1768326932199,0.09644,93392.0,93376.0,0.010715]
[1768326932796,0.010714,93391.0,93373.0,8.7e-07]
[1768326933197,0.010714,93391.0,93374.0,0.010716]
[1768326933695,0.09644,93392.0,93374.0,0.19034867]
[1768326933889,0.09861662,93399.0,93374.0,0.20106367]
[1768326933890,0.010714,93390.0,93374.0,0.20106367]
[1768326934091,0.010714,93390.0,93374.0,0.19306367]
[1768326935084,0.010713,93393.0,93376.0,0.010715]
[1768326935289,0.010714,93391.0,93376.0,0.010715]
[1768326937301,0.09466087,93387.0,93373.0,8.7e-07]
[1768326937491,0.09427271,93378.0,93362.0,8.937e-05]
[1768326937690,0.010716,93374.0,93362.0,8.937e-05]
[1768326937889,0.010715,93381.0,93362.0,8.937e-05]
[1768326938192,0.010713,93400.0,93353.0,0.00535601]
[1768326938193,0.09466087,93371.0,93353.0,0.00535601]
[1768326938385,0.010716,93369.0,93353.0,0.00535601]
[1768326938592,0.09427271,93371.0,93353.0,0.00535601]
[1768326938799,0.010716,93368.0,93353.0,0.00535601]
[1768326939100,8.587e-05,93367.0,93353.0,0.00535601]
[1768326939299,8.587e-05,93367.0,93354.0,0.09986762]
[1768326942095,8.587e-05,93367.0,93355.0,0.19134913]
[1768326942602,8.587e-05,93367.0,93355.0,0.17234913]
[1768326942802,8.587e-05,93367.0,93355.0,0.18306713]
[1768326942999,0.08450595,93380.0,93357.0,0.09558164]
[1768326943307,0.09644,93379.0,93356.0,0.09986762]
[1768326944302,0.09644,93379.0,93358.0,0.09986762]
[1768326944505,0.09644,93379.0,93359.0,0.010717]
[1768326945006,0.09644,93379.0,93359.0,0.20206613]
[1768326945201,0.09644,93379.0,93360.0,0.09986762]
[1768326945996,0.010715,93378.0,93360.0,0.09986762]
[1768326946201,0.09558164,93370.0,93359.0,0.09148151]
[1768326946902,0.17959912,93380.0,93359.0,0.20206613]
[1768326947099,0.17959912,93380.0,93353.0,0.00535601]
[1768326947100,0.15336767,93391.0,93362.0,0.09986762]
[1768326947301,0.15336767,93391.0,93360.0,0.09558164]
[1768326947302,0.010714,93388.0,93370.0,0.09986762]
[1768326947507,0.09558164,93380.0,93370.0,0.09986762]
[1768326947892,0.010715,93383.0,93368.0,0.09148151]
[1768326948091,0.09558164,93380.0,93368.0,0.09148151]
[1768326948295,0.09558164,93380.0,93352.0,0.09606963]
[1768326948296,0.09427271,93371.0,93355.0,0.09648]
[1768326948498,0.010717,93364.0,93355.0,0.09648]
[1768326948707,0.09558164,93365.0,93355.0,0.09648]
[1768326949598,0.10629764,93370.0,93355.0,0.09648]
[1768326950200,0.10629764,93370.0,93355.0,0.07948]
[1768326950402,0.10629864,93365.0,93355.0,0.07948]
[1768326950807,0.09558164,93365.0,93353.0,0.00535601]
[1768326951309,0.09558164,93365.0,93353.0,0.01607401]
[1768326951620,0.09558164,93370.0,93353.0,0.01607401]
[1768326952402,0.09558164,93370.0,93353.0,0.00535601]
[1768326952706,0.09558164,93370.0,93326.0,0.396641]
[1768326952707,0.18893358,93352.0,93331.0,6.3e-07]
[1768326952898,0.09558164,93343.0,93330.0,0.09648]
[1768326953100,0.010719,93343.0,93330.0,0.09648]
[1768326953401,0.09558164,93343.0,93326.0,0.09986762]
[1768326953614,0.09558164,93340.0,93326.0,0.09986762]
[1768326953802,0.09558164,93340.0,93327.0,0.010721]
[1768326954201,0.09558164,93340.0,93329.0,0.010721]
[1768326954607,0.09427271,93347.0,93326.0,0.09986762]
[1768326954808,0.10499071,93354.0,93337.0,0.01072]
[1768326955005,0.09648,93353.0,93336.0,0.09986762]
[1768326955311,0.09558164,93350.0,93336.0,0.20206913]
[1768326955512,0.09558164,93350.0,93336.0,0.01072]
[1768326955808,0.09648,93353.0,93336.0,0.09148151]
[1768326956013,0.09648,93353.0,93337.0,0.09986762]
[1768326956402,0.010718,93357.0,93337.0,0.09986762]
[1768326956604,0.09648,93356.0,93337.0,0.09986762]
[1768326957122,0.010718,93355.0,93339.0,0.010719]